Cogmind - Beta 9.6 @@@ ROGUE MODE // 2020.08.28 @ 16:45:56 Player: Cracklepappy Result: Smashed by cave-in Performance ------------- Evolutions (0) 0 Regions Visited (4) 800 Robots Destroyed (31) 155 Value Destroyed (602) 602 Prototype IDs (22) 440 Alien Tech Used (0) 0 Bonus (300) 300 TOTAL SCORE: 2297 Bonus ------- Aligned with FarCom 300 Cogmind --------- Core Integrity 0/250 Matter 198/300 Energy 123/125 System Corruption 0% Temperature Cool (0) Movement Rolling (110) Ox1 Location -9/Mines Parts ------- > --- POWER (1) -------- Light Ion Engine > --- PROPULSION (2) --- Compact Wheel Compact Wheel > --- UTILITY (2) ------ Large Storage Unit Large Storage Unit > --- WEAPON (2) ------- Improved Light Cannon Rocket Launcher > --- INVENTORY (16) --- Light Treads Wheel Large Storage Unit Large Storage Unit Large Battery (300) Medium Matter Pod (0) Improved Sensor Array Modified TNC Guided Plasma Cannon Improved Light Cannon Improved Light Cannon Improved Light Cannon AWS/Autocannon Mining Laser Peak State ------------ > --- POWER ------------ Light Ion Engine > --- PROPULSION ------- Compact Wheel Compact Wheel > --- UTILITY ---------- Large Storage Unit Large Storage Unit > --- WEAPON ----------- Improved Light Cannon Rocket Launcher > --- INVENTORY -------- Light Treads Wheel Large Storage Unit Large Storage Unit Improved Sensor Array Modified TNC Improved Light Cannon Improved Light Cannon Improved Light Cannon AWS/Autocannon Grenade Launcher Mining Laser [Rating: 14] Favorites ----------- Power Light Ion Engine Engine Light Ion Engine Propulsion Compact Wheel Treads Light Treads Wheel Compact Wheel Utility Large Storage Unit Device Improved Terrain Scanner Storage Large Storage Unit Processor Targeting Computer Weapon Improved Light Cannon Energy Cannon Particle Cannon Ballistic Gun Assault Rifle Ballistic Cannon Improved Light Cannon Launcher Rocket Launcher Special Weapon Mining Laser Build | -11 -10 -10 -10 -9 ------- Run | Scr Mat Min Exi Min Slots Evolved . | . . . . . Power . | . . . . . Propulsion . | . . . . . Utility . | . . . . . Weapon . | . . . . . Parts Attached 28 | 8 16 1 1 2 Power 2 | 1 1 . . . Engine 2 | 1 1 . . . Core . | . . . . . Reactor . | . . . . . Propulsion 4 | 2 2 . . . Treads 2 | 2 . . . . Leg . | . . . . . Wheel 2 | . 2 . . . Hover . | . . . . . Flight . | . . . . . Utility 5 | 2 2 . 1 . Device 1 | 1 . . . . Storage 3 | 1 1 . 1 . Processor 1 | . 1 . . . Hackware . | . . . . . Protection . | . . . . . Artifact . | . . . . . Weapon 17 | 3 11 1 . 2 Energy Gun . | . . . . . Energy Cannon 2 | . 2 . . . Ballistic Gun 4 | 3 1 . . . Ballistic Cannon 5 | . 5 . . . Launcher 3 | . 1 1 . 1 Special Weapon 3 | . 2 . . 1 Impact Weapon . | . . . . . Slashing Weapon . | . . . . . Piercing Weapon . | . . . . . Special Melee Weapon . | . . . . . Unidentified Prototypes . | . . . . . Parts Lost 7 | . 7 . . . Power 1 | . 1 . . . Propulsion 2 | . 2 . . . Utility 1 | . 1 . . . Weapon 3 | . 3 . . . Highest Loss Streak 7 | . 7 . . . Average Slot Usage (%) 96 | . 91 100 100 100 Engine 13 | . 12 14 14 14 Treads 1 | . 3 . . . Wheel 25 | . 22 28 28 28 Storage 20 | . 14 14 25 28 Processor 5 | . 9 14 2 . Energy Cannon 1 | . 2 . . . Ballistic Gun 1 | . 2 . . . Ballistic Cannon 16 | . 18 24 14 14 Launcher 7 | . . 4 14 12 Special Weapon 1 | . 2 . . 1 Naked Turns . | . . . . . Heaviest Build 43 | 12 27 27 43 43 Greatest Support 40 | 40 40 32 32 32 Greatest Overweight (x) 3 | . 3 . 1 1 Average Overweight (x) . | . . . . 1 Largest Inventory Capacity 16 | 6 10 10 16 16 Average Capacity 11 | 5 7 10 15 16 Most Carried 16 | 6 9 10 16 16 Average Carried 9 | 3 6 9 11 16 Final Capacity 16 | 6 10 10 16 16 Final Carried 16 | 6 9 10 16 16 Class Distribution -------------------- 100% | Mutant Dominant Class ---------------- Mutant | -10/Materials Mutant | -10/Mines Mutant | -10/Exiles Mutant | -9/Mines Resources | -11 -10 -10 -10 -9 ----------- Run | Scr Mat Min Exi Min Matter Collected 710 | 284 325 1 100 . Remotely . | . . . . . Salvage Created 725 | 142 508 8 . 67 Parts 56 | 10 38 3 . 5 Haulers Intercepted . | . . . . . Recyclers Shooed . | . . . . . Parts Field Recycled . | . . . . . Retrieved Matter . | . . . . . Parts Self-Destructed . | . . . . . Prevented . | . . . . . Kills | -11 -10 -10 -10 -9 ------- Run | Scr Mat Min Exi Min Combat Hostiles Destroyed 19 | . 14 3 . 2 Guns 3 | . 3 . . . Cannons 8 | . 8 . . . AOE 8 | . 3 3 . 2 Classes Destroyed 9 | 2 6 . . 1 Worker 1 | . 1 . . . Builder 1 | . 1 . . . Tunneler 4 | 3 . . . 1 Recycler 2 | 1 1 . . . Operator 1 | . 1 . . . Watcher 3 | . 3 . . . Swarmer 8 | . 5 3 . . Grunt 10 | . 9 . . 1 Brawler 1 | . . . . 1 Best Kill Streak 7 | 4 7 3 . 3 Combat Bots Only 5 | . 5 3 . 2 Max Kills in Single Turn 3 | 1 3 3 . 1 Gunslinging . | . . . . . Exploded 3 | . 2 3 . 1 Melee . | . . . . . Uniques/NPCs Destroyed . | . . . . . Combat | -11 -10 -10 -10 -9 -------- Run | Scr Mat Min Exi Min Damage Taken 1156 | . 946 6 . 204 Core 327 | . 223 . . 104 Absorbed by Shields . | . . . . . Core Remaining (%) 100 | 100 . . . . Volleys Fired 70 | 8 55 1 . 6 Largest 2 | 2 2 1 . 1 Hottest 100 | 40 100 33 . 100 Shots Fired 113 | 16 90 1 . 6 Gun 57 | 16 41 . . . Cannon 37 | . 37 . . . Launcher 8 | . 2 1 . 5 Special 11 | . 10 . . 1 Kinetic 91 | 16 75 . . . Thermal 14 | . 13 . . 1 Explosive 8 | . 2 1 . 5 Electromagnetic . | . . . . . Robot Hit Streak 12 | 12 10 . . 2 Robot Miss Streak 4 | 1 4 1 . 4 Penetration Max . | . . . . . Secondary Targets . | . . . . . Shots Hit Robots 58 | 12 44 . . 2 Core Hits 43 | 5 30 3 . 5 Critical Hits 1 | 1 . . . . Critical Kills . | . . . . . Critical Parts Destroyed 1 | 1 . . . . Melee Attacks . | . . . . . Impact . | . . . . . Slashing . | . . . . . Piercing . | . . . . . Sneak Attacks . | . . . . . Combat Hostiles . | . . . . . Follow-up Attacks . | . . . . . Damage Inflicted 1640 | 153 1002 217 . 268 Guns 451 | 153 298 . . . Cannons 500 | . 500 . . . Explosions 665 | . 204 217 . 244 Melee . | . . . . . Ramming . | . . . . . Kinetic 890 | 153 737 . . . Thermal 141 | . 61 56 . 24 Explosive 609 | . 204 161 . 244 Electromagnetic . | . . . . . Impact . | . . . . . Slashing . | . . . . . Piercing . | . . . . . Highest Corruption . | . . . . . Average Corruption . | . . . . . Corruption Purged . | . . . . . Overload Shots . | . . . . . Overflow Damage 8 | . 8 . . . Projectiles 8 | . 8 . . . Explosions . | . . . . . Melee . | . . . . . Knockbacks 3 | . 3 . . . Impact . | . . . . . Kinetic 3 | . 3 . . . Secondary . | . . . . . Self-Inflicted Damage 70 | . . . . 70 Shots 2 | . . . . 2 Rammed . | . . . . . Targets Rammed . | . . . . . Kicked . | . . . . . Crushed . | . . . . . Highest Temperature 138 | . 138 . . 20 Average Temperature 27 | . 28 . . 10 Received Heat Transfer 450 | . 444 . . 6 Siege Activations . | . . . . . Robots Corrupted . | . . . . . Combat Hostiles . | . . . . . Parts Fried . | . . . . . Impact Corruptions . | . . . . . Robots Melted . | . . . . . Combat Hostiles . | . . . . . Parts Melted . | . . . . . Heat Transferred 211 | . 111 50 . 50 Parts Sabotaged . | . . . . . Parts Stolen . | . . . . . Parts Stripped . | . . . . . Power Chain Reactions . | . . . . . Missiles Intercepted . | . . . . . Alert | -11 -10 -10 -10 -9 ------- Run | Scr Mat Min Exi Min Peak Influence 192 | 20 192 97 . 55 Average Influence 63 | 8 100 24 . 1 Maximum Alert Level . | . . . . . Low Security (%) 100 | 100 100 100 . 100 Level 1 . | . . . . . Level 2 . | . . . . . Level 3 . | . . . . . Level 4 . | . . . . . Level 5 . | . . . . . High Security . | . . . . . Max Security . | . . . . . Squads Dispatched 4 | . 4 . . . Investigation 2 | . 2 . . . Extermination . | . . . . . Reinforcement 2 | . 2 . . . Assault . | . . . . . Garrison . | . . . . . Intercept . | . . . . . Construction Impeded . | . . . . . Haulers Reinforced . | . . . . . Stealth | -11 -10 -10 -10 -9 --------- Run | Scr Mat Min Exi Min Distress Signals 2 | . 2 . . . Communications Jammed . | . . . . . Distress Signals . | . . . . . Times Spotted 28 | . 23 3 . 2 Peak Tracking Total 9 | . 9 3 . 2 Tactical Retreats . | . . . . . Traps | -11 -10 -10 -10 -9 ------- Run | Scr Mat Min Exi Min Traps Triggered . | . . . . . Indirectly . | . . . . . Trap Hack Attempts . | . . . . . Triggered . | . . . . . Disarmed . | . . . . . Reprogrammed . | . . . . . Reused . | . . . . . Traps Extracted . | . . . . . Installed . | . . . . . Triggered . | . . . . . Machines | -11 -10 -10 -10 -9 ---------- Run | Scr Mat Min Exi Min Machines Disabled 1 | . . 1 . . Max in Single Turn 1 | . . 1 . . Machines Sabotaged . | . . . . . Garrisons Compromised . | . . . . . Overloaded Fab Kills . | . . . . . Fab Network Shutdowns . | . . . . . Hacking | -11 -10 -10 -10 -9 --------- Run | Scr Mat Min Exi Min Machines Accessed 9 | . 7 1 1 . Terminals 7 | . 6 1 . . Fabricators . | . . . . . Repair Stations . | . . . . . Recycling Units 1 | . 1 . . . Scanalyzers . | . . . . . Garrison Access . | . . . . . Total Hacks 19 | . 14 4 1 . Successful 10 | . 7 2 1 . Failed 9 | . 7 2 . . Catastrophic 2 | . 2 . . . Database Lockouts . | . . . . . Manual 11 | . 6 4 1 . Terminals 17 | . 13 4 . . Fabricators . | . . . . . Repair Stations . | . . . . . Recycling Units 1 | . 1 . . . Scanalyzers . | . . . . . Garrison Access . | . . . . . Terminal Hacks 9 | . 6 2 1 . Unreport Threat 3 | . 2 1 . . Locate Traps 1 | . 1 . . . Hauler Manifests 1 | . 1 . . . Registered Components 1 | . 1 . . . Zone Layout 2 | . 1 1 . . EX-Prototype ID Bank 1 | . . . 1 . Fabricator Hacks . | . . . . . Repair Station Hacks . | . . . . . Recycling Unit Hacks . | . . . . . Scanalyzer . | . . . . . Garrison Access Hacks . | . . . . . Unauthorized Hacks 1 | . 1 . . . Terminals . | . . . . . Fabricators . | . . . . . Repair Stations . | . . . . . Recycling Units 1 | . 1 . . . Tunnel 1 | . 1 . . . Scanalyzers . | . . . . . Garrison Access . | . . . . . Data Cores Recovered 1 | . 1 . . . Used 1 | . 1 . . . Hacking Detections 7 | . 6 1 . . Full Trace Events 1 | . 1 . . . Feedback Events . | . . . . . Feedback Blocked . | . . . . . Robot Schematics Acquired . | . . . . . Robots Built . | . . . . . Matter . | . . . . . Time . | . . . . . Total Robot Build Rating . | . . . . . Part Schematics Acquired . | . . . . . Parts Built . | . . . . . Matter . | . . . . . Time . | . . . . . Total Part Build Rating . | . . . . . Parts Repaired . | . . . . . Time . | . . . . . Parts Recycled . | . . . . . Recycled Matter . | . . . . . Retrieved Matter . | . . . . . Retrieved Components . | . . . . . Parts Scanalyzed . | . . . . . Part Schematics Acquired . | . . . . . Parts Damaged . | . . . . . Bothacking | -11 -10 -10 -10 -9 ------------ Run | Scr Mat Min Exi Min Used RIF Installer . | . . . . . Robots Hacked . | . . . . . Non-combat . | . . . . . Combat . | . . . . . Robot Hacks Applied . | . . . . . Relay Couplers Released . | . . . . . Robots Rewired . | . . . . . Allies Hacked . | . . . . . Hacks Repelled . | . . . . . Allies | -11 -10 -10 -10 -9 -------- Run | Scr Mat Min Exi Min Total Allies . | . . . . . Largest Group . | . . . . . Highest-Rated Group . | . . . . . Highest-Rated Ally . | . . . . . Total Orders . | . . . . . Ally Attacks . | . . . . . Total Damage . | . . . . . Kills . | . . . . . Allies Corrupted . | . . . . . Allies Melted . | . . . . . Intel | -11 -10 -10 -10 -9 ------- Run | Scr Mat Min Exi Min Robot Analysis Total . | . . . . . Derelict Logs Recovered . | . . . . . Drone Launches . | . . . . . Drone Recoveries . | . . . . . Exploration | -11 -10 -10 -10 -9 ------------- Run | Scr Mat Min Exi Min Turns Passed 1628 | 127 669 71 509 252 Spaces Moved 1242 | 55 445 67 461 214 Core 27 | 2 25 . . . Treads 62 | 53 9 . . . Legs . | . . . . . Wheels 1153 | . 411 67 461 214 Hover . | . . . . . Flight . | . . . . . Fastest Speed 50 | 50 100 100 100 110 Average Speed 109 | 156 105 100 108 110 Slowest Speed 200 | 160 200 100 110 110 Overloaded Moves . | . . . . . Propulsion Burnouts . | . . . . . Robots Hopped . | . . . . . Cave-ins Triggered 1 | . . . . 1 Exploration Rate (%) 46 | 4 83 18 71 54 Regions Visited 4 Branch Regions 3 Pre-discovered Areas 1 | . 1 . . . Known Exits Taken . | . . . . . Unknown Exits Taken 4 | 1 1 1 1 . Scrap Searched . | . . . . . Spaces Dug 13 | . 13 . . . Terrain Destroyed 90 | . 18 13 . 59 Melee . | . . . . . Projectile 10 | . 10 . . . AOE 80 | . 8 13 . 59 Actions | -11 -10 -10 -10 -9 --------- Run | Scr Mat Min Exi Min Total 1371 | 76 535 69 470 221 Wait . | . . . . . Move 1237 | 54 444 66 460 213 Hop . | . . . . . Pick Up 26 | 6 12 1 7 . Fast Attach 12 | 7 5 . . . Attach 4 | . 4 . . . Detach . | . . . . . Swap 12 | 1 7 1 1 2 Drop 10 | . 8 . 2 . Fire 70 | 8 55 1 . 6 Melee . | . . . . . Ram . | . . . . . Kick . | . . . . . Crush . | . . . . . Escape Stasis . | . . . . . Rewire . | . . . . . Trap . | . . . . . Miscellaneous . | . . . . . Route ------- -11/Scrapyard -10/Materials (discovered 4 exits: [*Mat x3] / *Min) -10/Mines -10/Exiles -9/Mines History --------- Turn | Location | Event 2 | -11/Scrapyard | Met Revision 17 26 | -11/Scrapyard | Discovered new exit (range 16) 128 | -11/Scrapyard | Entered Materials 197 | -10/Materials | Core integrity fell below 50% 216 | -10/Materials | Core integrity fell below 20% 235 | -10/Materials | Lost 7 parts (1p2n1u3w) 301 | -10/Materials | Build established: Mutant 428 | -10/Materials | Discovered new exit (range 4) 464 | -10/Materials | Discovered new exit (range 14) 563 | -10/Materials | Discovered new exit (range 16) 747 | -10/Materials | Discovered new exit (range 7) 797 | -10/Materials | Entered Mines 814 | -10/Mines | Received a Rocket Launcher from a helpful Derelict 859 | -10/Mines | Discovered new exit (range 10) 864 | -10/Mines | Deemed a non-threat by the Exiles lab entrance 868 | -10/Mines | Entered Exiles 892 | -10/Exiles | Met 8R-AWN 908 | -10/Exiles | Met EX-HEX 961 | -10/Exiles | Met EX-DEC 1130 | -10/Exiles | Met EX-BIN 1189 | -10/Exiles | Aligned with FarCom system 1190 | -10/Exiles | Given EX-Vault access code 1217 | -10/Exiles | Opened EX-Vault 1232 | -10/Exiles | Found Modified TNC 1234 | -10/Exiles | Found AWS/Autocannon 1238 | -10/Exiles | Found Gui. Plasma Cannon 1268 | -10/Exiles | Warned to stay clear of 0b10 Research branches 1362 | -10/Exiles | Discovered new exit (range 14) 1377 | -10/Exiles | Stole three prototypes: Modified TNC, Gui. Plasma Cannon, AWS/Autocannon 1377 | -10/Exiles | Entered Mines 1425 | -9/Mines | Met a Derelict bent on vengeance 1629 | -9/Mines | Crushed by falling debris 1629 | -9/Mines | Smashed by cave-in Last Messages --------------- 01341_ Dropped Grenade Launcher. 01345_ Extracted 2 energy. 01346_ Acquired Lrg. Battery. 01362_ EXIT=FOUND LOCATION=UNKNOWN GOAL=ESCAPE 01377_ Receiving FarCom transmissions... 01388_ K-01 Serf collects debris. 01393_ K-01 Serf cleans the Seismic Survey Station. 01397_ K-01 Serf collects debris. 01532_ ZM-ZW6(g): "I WILL HAVE VENGEANCE!" 01615_ C-30 ARC bursts open, deploying its payload. 01615_ B-36 Bruiser unfolds itself. 01615_ G-34 Mercenary unfolds itself. 01619_ T-07 Excavator destroyed. 01623_ B-36 Bruiser destroyed. 01624_ The unstable cave ceiling collapses. 01625_ G-34 Mercenary destroyed. 01628_ The unstable cave ceiling collapses. 01629_ Crushed by falling debris. Map ----- +----------------------------------------------------+ | ????????????????????????????????????????? | | ????????????????????????????????????????? | | ????????????????????????????????????????? | | ????????????????????????????????????????? | | ????????????????????????????????????????? | | ????????????????????????????????????????? | | ????????????????????????????????????????? | | ????????????????????????????????????????? | | ????????????????????????????????????????? | | ??????????????????????#?????????????????? | | ????????????????????? ?????????????????? | | ????????????????????? ?????????????????? | | ????????????????????? ##???????????????? | | ????????????????????? ##??????????????? | | ?????????????????????? ???????????????? | | ?????????????????????? ???????????????? | | ?????????????????????? ???????????????? | | ?????????????????????? #???????????????? | | ??????????????????????# #???????????????? | | ?????????????????????## #???????????????? | | ?????????????????????# #???????????????? | | ?????????????????##### ##??????????????? | | ?????????????????# #??????????????? | | ??????????????# ## ##??#??????????? | | ??????????????# # #??????????? | | ??????????????#### @ #??????????? | | ?????????????????## #??????????? | | ??????????????????# %= #??????????? | | ??????????????????## *%! #??????????? | | ??????????????????# # #??????????? | | ??????????????????## ## #??????????? | | #######????????????# # #? #??????????? | | #????###########r###? ??????????? | | ##### ###### #??? !!!?????????? | | ##??# ##########????! !????????? | | ##?######## #?????????????! !????????? | | ####?????# #????????????? !!! ???????? | | #?????# #?????????????? ???????? | | ## #????# ###???????????? k ???????? | | ??# #??### ######??????? ??????????? | | ??# ### ##?????????????????? | | ??# #?????????????????? | | ??## #?????????????????? | | ???### #?????????????????? | | ?????## ##?????????????????? | | ###???# #??####????????????? | | ##?## #### ##???????????? | | ### ## ## ##??????????? | | ### ##?????????? | | #?# ##????????? | +----------------------------------------------------+ Best States ------------- Heat Dissipation 25 Energy Generation 10 Energy Capacity 125 Matter Stores 300 Matter Capacity 300 Sight Range 16 Terrain Scan Range 16 Terrain Scan Density 10 Evasion (%) 40 Targeting Accuracy 5 Recoil Reduction 2 Item Schematics ----------------- None Robot Schematics ------------------ None Fabricated ------------ Nothing Alien Tech Used ----------------- None Achievements -------------- None Challenges ------------ None Game ------ Seed SeismicMobileScythe Manual? 0 Play Time 00:18:04 Cumulative 147.0 hours Start 2020.08.28 @ 16:19:02 End 2020.08.28 @ 16:45:56 Sessions 1 Manual Loads 0 Difficulty Rogue Special Mode None Game No. 179 Rogue 179 Adventurer 0 Explorer 0 Win Type - Total 2 Types 2/0/0/0/0/0/0 Lore% 58 Gallery% 69 Achievement% 51 Wizard Run 0 Options --------- ASCII 0 Keyboard 0 Movement Numpad Keybinds 0 Fullscreen 2 Font 24/Smallcaps Map View 76x50 Tactical HUD 1 Map Filters NONE Filters NONE Steam 1 RUN: b3b1c32d-2b11-4cd5-a76e-b88a11df7cac